Workbook

Sheet 13.1
B8: Calculations | F8: Trade 1 | G8: Trade 2 | H8: Trade 3
B9: Total value (V) | C9: =SUM(F9:H9) -> 0.81 | E9: Value | F9: 3.41 | G9: -3.7 | H9: 1.1 | J9: 1 | K9: 0.7 | L9: 0.3
E10: Notional | F10: 50 | G10: 30 | H10: 20 | J10: =K9 -> 0.7 | K10: 1 | L10: 0.7
B11: Collateralised? | C11: TRUE | E11: Start date | F11: 0 | G11: 0 | H11: 0 | J11: =L9 -> 0.3 | K11: =L10 -> 0.7 | L11: 1
B12: Threshold | C12: 1 | E12: End date | F12: 2 | G12: 4.3 | H12: 9.4
B13: MTA | C13: 0.1 | E13: Maturity | F13: =F12 -> 2 | G13: =G12 -> 4.3 | H13: =H12 -> 9.4
B14: VM | C14: 0 | E14: Pay/Rec | F14: PAY | G14: PAY | H14: PAY
B15: NICA | C15: 0 | E15: Adjusted notional | F15: =F10*(EXP(-0.05*F11)-EXP(-0.05*F12))/0.05*IF(F14="PAY",1,-1) -> 95.16258196 | G15: =G10*(EXP(-0.05*G11)-EXP(-0.05*G12))/0.05*IF(G14="PAY",1,-1) -> 116.0751359 | H15: =H10*(EXP(-0.05*H11)-EXP(-0.05*H12))/0.05*IF(H14="PAY",1,-1) -> 149.9990927
B16: Net collateral held (C) | C16: =NICA+VM -> 0 | E16: MF | F16: =IF(Collateralised,1.5*SQRT(10/250),SQRT(MIN(MAX(F13,10/250),1)/1)) -> 0.3 | G16: =IF(Collateralised,1.5*SQRT(10/250),SQRT(MIN(MAX(G13,10/250),1)/1)) -> 0.3 | H16: =IF(Collateralised,1.5*SQRT(10/250),SQRT(MIN(MAX(H13,10/250),1)/1)) -> 0.3
E17: Effective notional | F17: =F15*F16 -> 28.54877459 | G17: =G15*G16 -> 34.82254077 | H17: =H15*H16 -> 44.99972781
B18: RC | C18: =IF(Collateralised,MAX(Value-Coll,Threshold+MTA-NICA,0,Value),MAX(Value,0)) -> 1.1
B19: Effective notional | C19: =SQRT(MMULT(F20:H20,MMULT(CorrMat,TRANSPOSE(F20:H20)))) -> 333.8873368 | E19: Bucketed | F19: 0-1 | G19: 0-5 | H19: 5+
B20: Add-on | C20: =EffNotional*0.5% -> 1.669436684 | F20: =SUMIF($F$12:$H$12,"<1",$F$15:$H$15) -> 0 | G20: =SUMIF($F$12:$H$12,"<5",$F$15:$H$15)-F20 -> 211.2377179 | H20: =SUMIF($F$12:$H$12,">5",$F$15:$H$15) -> 149.9990927
B21: Multiplier | C21: =IF(AddOn=0,1,MIN(1,0.05+(1-0.05)*EXP((Value-Coll)/(2*(1-0.05)*AddOn)),1)) -> 1
B22: PFE | C22: =C21*AddOn -> 1.669436684
B23: Alpha | C23: 1.4
B25: EAD | C25: =Alpha*(RCost+PFE) -> 3.877211358

Sheet 13.2
B8: Portfolio Details
C9: Default Probability | D9: Mean | E9: Std Dev | F9: EE | H9: Parameters | L9: Fixed | M9: Stoch
B10: Name 1 | C10: 0.05073583266 | D10: 0 | E10: 10 | F10: =(D10*NORMSDIST(D10/E10)+E10*NORMDIST(D10/E10,0,1,FALSE())) -> 3.989422804 | H10: Bins | I10: 250 | K10: =MonteCarloStochasticExposure(OFFSET(C10,0,0,NumNames,1),OFFSET(D10,0,0,NumNames,1),OFFSET(E10,0,0,NumNames,1),Correlation,Bins,MaxLoss,Sims,) -> 0 | L10: 1 | M10: 1
B11: Name 2 | C11: 0.05167606192 | D11: 0 | E11: 10 | F11: =(D11*NORMSDIST(D11/E11)+E11*NORMDIST(D11/E11,0,1,FALSE())) -> 3.989422804 | H11: Max Loss | I11: 250 | K11: 0.5 | L11: 0.88116 | M11: 0.71828
B12: Name 3 | C12: 0.04228579404 | D12: 0 | E12: 10 | F12: 3.989422804 | H12: Num Names | I12: 100 | K12: 1.5 | L12: 0.88116 | M12: 0.6958
B13: Name 4 | C13: 0.02345954012 | D13: 0 | E13: 10 | F13: 3.989422804 | H13: Correlation | I13: 0.1 | K13: 2.5 | L13: 0.88116 | M13: 0.67112
B14: Name 5 | C14: 0.04157874028 | D14: 0 | E14: 10 | F14: 3.989422804 | H14: Sims | I14: 25000 | K14: 3.5 | L14: 0.88116 | M14: 0.6494
B15: Name 6 | C15: 0.05526210077 | D15: 0 | E15: 10 | F15: 3.989422804 | H15: Quantile | I15: 0.999 | K15: 4.5 | L15: 0.7144 | M15: 0.62448
B16: Name 7 | C16: 0.05411401967 | D16: 0 | E16: 10 | F16: 3.989422804 | K16: 5.5 | L16: 0.7144 | M16: 0.59764
B17: Name 8 | C17: 0.01830252608 | D17: 0 | E17: 10 | F17: 3.989422804 | H17: Calculation | K17: 6.5 | L17: 0.7144 | M17: 0.5726
B18: Name 9 | C18: 0.04364946898 | D18: 0 | E18: 10 | F18: 3.989422804 | H18: Quantile (Fixed) | I18: =OFFSET(K10,MATCH(1-Quantile,OFFSET(L10,0,0,Bins,1),-1),0,1,1) -> 88.5 | K18: 7.5 | L18: 0.7144 | M18: 0.54704
B19: Name 10 | C19: 0.03328190947 | D19: 0 | E19: 10 | F19: 3.989422804 | H19: Quantile (Stoch) | I19: =OFFSET(K10,MATCH(1-I15,OFFSET(M10,0,0,Bins,1),-1),0,1,1) -> 106.5 | K19: 8.5 | L19: 0.5484 | M19: 0.5234
B20: Name 11 | C20: 0.02660739965 | D20: 0 | E20: 10 | F20: 3.989422804 | H20: Alpha | I20: =I19/I18 -> 1.203389831 | K20: 9.5 | L20: 0.5484 | M20: 0.4992
B21: Name 12 | C21: 0.03010006344 | D21: 0 | E21: 10 | F21: 3.989422804 | K21: 10.5 | L21: 0.5484 | M21: 0.47352
B22: Name 13 | C22: 0.01274718563 | D22: 0 | E22: 10 | F22: 3.989422804 | K22: 11.5 | L22: 0.5484 | M22: 0.45044
B23: Name 14 | C23: 0.02007841329 | D23: 0 | E23: 10 | F23: 3.989422804 | K23: 12.5 | L23: 0.40916 | M23: 0.42772
B24: Name 15 | C24: 0.05831419779 | D24: 0 | E24: 10 | F24: 3.989422804 | K24: 13.5 | L24: 0.40916 | M24: 0.40444
B25: Name 16 | C25: 0.01291641263 | D25: 0 | E25: 10 | F25: 3.989422804 | K25: 14.5 | L25: 0.40916 | M25: 0.38376 | O25: 0 | P25: =1-Quantile -> 0.001
B26: Name 17 | C26: 0.02310897772 | D26: 0 | E26: 10 | F26: 3.989422804 | K26: 15.5 | L26: 0.40916 | M26: 0.36352 | O26: =I18 -> 88.5 | P26: =1-Quantile -> 0.001
B27: Name 18 | C27: 0.02794921334 | D27: 0 | E27: 10 | F27: 3.989422804 | K27: 16.5 | L27: 0.30016 | M27: 0.34228 | O27: =O26 -> 88.5 | P27: 1e-05
B28: Name 19 | C28: 0.04222219683 | D28: 0 | E28: 10 | F28: 3.989422804 | K28: 17.5 | L28: 0.30016 | M28: 0.32392
B29: Name 20 | C29: 0.0472312712 | D29: 0 | E29: 10 | F29: 3.989422804 | K29: 18.5 | L29: 0.30016 | M29: 0.30636 | O29: 0
B30: Name 21 | C30: 0.02352395962 | D30: 0 | E30: 10 | F30: 3.989422804 | K30: 19.5 | L30: 0.30016 | M30: 0.28888 | O30: =I19 -> 106.5
B31: Name 22 | C31: 0.02311150014 | D31: 0 | E31: 10 | F31: 3.989422804 | K31: 20.5 | L31: 0.22028 | M31: 0.2726 | O31: =O30 -> 106.5
B32: Name 23 | C32: 0.03076321565 | D32: 0 | E32: 10 | F32: 3.989422804 | K32: 21.5 | L32: 0.22028 | M32: 0.25756
B33: Name 24 | C33: 0.01361518031 | D33: 0 | E33: 10 | F33: 3.989422804 | K33: 22.5 | L33: 0.22028 | M33: 0.24268
B34: Name 25 | C34: 0.05109731046 | D34: 0 | E34: 10 | F34: 3.989422804 | K34: 23.5 | L34: 0.22028 | M34: 0.22796
B35: Name 26 | C35: 0.04796459574 | D35: 0 | E35: 10 | F35: 3.989422804 | K35: 24.5 | L35: 0.15908 | M35: 0.21548
B36: Name 27 | C36: 0.02771574208 | D36: 0 | E36: 10 | F36: 3.989422804 | K36: 25.5 | L36: 0.15908 | M36: 0.20356
B37: Name 28 | C37: 0.04229025988 | D37: 0 | E37: 10 | F37: 3.989422804 | K37: 26.5 | L37: 0.15908 | M37: 0.1924
B38: Name 29 | C38: 0.01743358639 | D38: 0 | E38: 10 | F38: 3.989422804 | K38: 27.5 | L38: 0.15908 | M38: 0.18064
B39: Name 30 | C39: 0.01796901071 | D39: 0 | E39: 10 | F39: 3.989422804 | K39: 28.5 | L39: 0.11384 | M39: 0.16976
B40: Name 31 | C40: 0.0409854752 | D40: 0 | E40: 10 | F40: 3.989422804 | K40: 29.5 | L40: 0.11384 | M40: 0.1596
B41: Name 32 | C41: 0.05827967622 | D41: 0 | E41: 10 | F41: 3.989422804 | K41: 30.5 | L41: 0.11384 | M41: 0.14964
B42: Name 33 | C42: 0.04477947164 | D42: 0 | E42: 10 | F42: 3.989422804 | K42: 31.5 | L42: 0.11384 | M42: 0.13952
B43: Name 34 | C43: 0.0391938333 | D43: 0 | E43: 10 | F43: 3.989422804 | K43: 32.5 | L43: 0.08108 | M43: 0.1316
B44: Name 35 | C44: 0.01733368127 | D44: 0 | E44: 10 | F44: 3.989422804 | K44: 33.5 | L44: 0.08108 | M44: 0.12348
B45: Name 36 | C45: 0.05765502843 | D45: 0 | E45: 10 | F45: 3.989422804 | K45: 34.5 | L45: 0.08108 | M45: 0.11632
B46: Name 37 | C46: 0.04618947477 | D46: 0 | E46: 10 | F46: 3.989422804 | K46: 35.5 | L46: 0.08108 | M46: 0.10952
B47: Name 38 | C47: 0.04351215126 | D47: 0 | E47: 10 | F47: 3.989422804 | K47: 36.5 | L47: 0.05628 | M47: 0.10264
B48: Name 39 | C48: 0.0555379255 | D48: 0 | E48: 10 | F48: 3.989422804 | K48: 37.5 | L48: 0.05628 | M48: 0.0968
B49: Name 40 | C49: 0.04418789649 | D49: 0 | E49: 10 | F49: 3.989422804 | K49: 38.5 | L49: 0.05628 | M49: 0.09068
B50: Name 41 | C50: 0.0279544163 | D50: 0 | E50: 10 | F50: 3.989422804 | K50: 39.5 | L50: 0.05628 | M50: 0.08552
B51: Name 42 | C51: 0.01501222438 | D51: 0 | E51: 10 | F51: 3.989422804 | K51: 40.5 | L51: 0.03988 | M51: 0.08032
B52: Name 43 | C52: 0.0155214119 | D52: 0 | E52: 10 | F52: 3.989422804 | K52: 41.5 | L52: 0.03988 | M52: 0.07548
B53: Name 44 | C53: 0.02157223163 | D53: 0 | E53: 10 | F53: 3.989422804 | K53: 42.5 | L53: 0.03988 | M53: 0.07124
B54: Name 45 | C54: 0.03516339551 | D54: 0 | E54: 10 | F54: 3.989422804 | K54: 43.5 | L54: 0.03988 | M54: 0.0668
B55: Name 46 | C55: 0.05630601806 | D55: 0 | E55: 10 | F55: 3.989422804 | K55: 44.5 | L55: 0.029 | M55: 0.0634
B56: Name 47 | C56: 0.04615677951 | D56: 0 | E56: 10 | F56: 3.989422804 | K56: 45.5 | L56: 0.029 | M56: 0.06032
B57: Name 48 | C57: 0.0506893801 | D57: 0 | E57: 10 | F57: 3.989422804 | K57: 46.5 | L57: 0.029 | M57: 0.05664
B58: Name 49 | C58: 0.03400314831 | D58: 0 | E58: 10 | F58: 3.989422804 | K58: 47.5 | L58: 0.029 | M58: 0.05316
B59: Name 50 | C59: 0.05056478292 | D59: 0 | E59: 10 | F59: 3.989422804 | K59: 48.5 | L59: 0.02048 | M59: 0.04976
B60: Name 51 | C60: 0.01112151268 | D60: 0 | E60: 10 | F60: 3.989422804 | K60: 49.5 | L60: 0.02048 | M60: 0.04724
B61: Name 52 | C61: 0.05461246773 | D61: 0 | E61: 10 | F61: 3.989422804 | K61: 50.5 | L61: 0.02048 | M61: 0.04424
B62: Name 53 | C62: 0.02791970935 | D62: 0 | E62: 10 | F62: 3.989422804 | K62: 51.5 | L62: 0.02048 | M62: 0.04128
B63: Name 54 | C63: 0.03342819595 | D63: 0 | E63: 10 | F63: 3.989422804 | K63: 52.5 | L63: 0.01392 | M63: 0.03892
B64: Name 55 | C64: 0.0261885881 | D64: 0 | E64: 10 | F64: 3.989422804 | K64: 53.5 | L64: 0.01392 | M64: 0.03636
B65: Name 56 | C65: 0.04136127003 | D65: 0 | E65: 10 | F65: 3.989422804 | K65: 54.5 | L65: 0.01392 | M65: 0.03424
B66: Name 57 | C66: 0.0321470564 | D66: 0 | E66: 10 | F66: 3.989422804 | K66: 55.5 | L66: 0.01392 | M66: 0.03224
B67: Name 58 | C67: 0.01508914902 | D67: 0 | E67: 10 | F67: 3.989422804 | K67: 56.5 | L67: 0.00976 | M67: 0.0302
B68: Name 59 | C68: 0.02400951922 | D68: 0 | E68: 10 | F68: 3.989422804 | K68: 57.5 | L68: 0.00976 | M68: 0.02828
B69: Name 60 | C69: 0.03916898904 | D69: 0 | E69: 10 | F69: 3.989422804 | K69: 58.5 | L69: 0.00976 | M69: 0.02684
B70: Name 61 | C70: 0.05362406088 | D70: 0 | E70: 10 | F70: 3.989422804 | K70: 59.5 | L70: 0.00976 | M70: 0.02524
B71: Name 62 | C71: 0.0105007761 | D71: 0 | E71: 10 | F71: 3.989422804 | K71: 60.5 | L71: 0.0068 | M71: 0.02404
B72: Name 63 | C72: 0.04321138551 | D72: 0 | E72: 10 | F72: 3.989422804 | K72: 61.5 | L72: 0.0068 | M72: 0.02288
B73: Name 64 | C73: 0.0178575172 | D73: 0 | E73: 10 | F73: 3.989422804 | K73: 62.5 | L73: 0.0068 | M73: 0.02112
B74: Name 65 | C74: 0.01951840044 | D74: 0 | E74: 10 | F74: 3.989422804 | K74: 63.5 | L74: 0.0068 | M74: 0.01956
B75: Name 66 | C75: 0.0385336035 | D75: 0 | E75: 10 | F75: =(D75*NORMSDIST(D75/E75)+E75*NORMDIST(D75/E75,0,1,FALSE())) -> 3.989422804 | K75: 64.5 | L75: 0.00484 | M75: 0.01836
B76: Name 67 | C76: 0.0158135413 | D76: 0 | E76: 10 | F76: 3.989422804 | K76: 65.5 | L76: 0.00484 | M76: 0.01744
B77: Name 68 | C77: 0.02316937727 | D77: 0 | E77: 10 | F77: 3.989422804 | K77: 66.5 | L77: 0.00484 | M77: 0.01656
B78: Name 69 | C78: 0.01280841802 | D78: 0 | E78: 10 | F78: 3.989422804 | K78: 67.5 | L78: 0.00484 | M78: 0.01556
B79: Name 70 | C79: 0.05150165274 | D79: 0 | E79: 10 | F79: 3.989422804 | K79: 68.5 | L79: 0.00364 | M79: 0.01472
B80: Name 71 | C80: 0.02970139245 | D80: 0 | E80: 10 | F80: 3.989422804 | K80: 69.5 | L80: 0.00364 | M80: 0.01384
B81: Name 72 | C81: 0.01776703842 | D81: 0 | E81: 10 | F81: 3.989422804 | K81: 70.5 | L81: 0.00364 | M81: 0.01332
B82: Name 73 | C82: 0.05306618587 | D82: 0 | E82: 10 | F82: 3.989422804 | K82: 71.5 | L82: 0.00364 | M82: 0.01268
B83: Name 74 | C83: 0.03232108787 | D83: 0 | E83: 10 | F83: 3.989422804 | K83: 72.5 | L83: 0.0026 | M83: 0.01188
B84: Name 75 | C84: 0.05890579204 | D84: 0 | E84: 10 | F84: 3.989422804 | K84: 73.5 | L84: 0.0026 | M84: 0.01124
B85: Name 76 | C85: 0.04291978818 | D85: 0 | E85: 10 | F85: 3.989422804 | K85: 74.5 | L85: 0.0026 | M85: 0.01056
B86: Name 77 | C86: 0.05353110292 | D86: 0 | E86: 10 | F86: 3.989422804 | K86: 75.5 | L86: 0.0026 | M86: 0.00984
B87: Name 78 | C87: 0.01006386474 | D87: 0 | E87: 10 | F87: 3.989422804 | K87: 76.5 | L87: 0.0018 | M87: 0.00912
B88: Name 79 | C88: 0.05558370654 | D88: 0 | E88: 10 | F88: 3.989422804 | K88: 77.5 | L88: 0.0018 | M88: 0.0084
B89: Name 80 | C89: 0.0351277252 | D89: 0 | E89: 10 | F89: 3.989422804 | K89: 78.5 | L89: 0.0018 | M89: 0.00784
B90: Name 81 | C90: 0.01122658415 | D90: 0 | E90: 10 | F90: 3.989422804 | K90: 79.5 | L90: 0.0018 | M90: 0.00736
B91: Name 82 | C91: 0.05574409222 | D91: 0 | E91: 10 | F91: 3.989422804 | K91: 80.5 | L91: 0.00144 | M91: 0.007
B92: Name 83 | C92: 0.05055847617 | D92: 0 | E92: 10 | F92: 3.989422804 | K92: 81.5 | L92: 0.00144 | M92: 0.00652
B93: Name 84 | C93: 0.04989808605 | D93: 0 | E93: 10 | F93: 3.989422804 | K93: 82.5 | L93: 0.00144 | M93: 0.0062
B94: Name 85 | C94: 0.02585530666 | D94: 0 | E94: 10 | F94: 3.989422804 | K94: 83.5 | L94: 0.00144 | M94: 0.00556
B95: Name 86 | C95: 0.04433753329 | D95: 0 | E95: 10 | F95: 3.989422804 | K95: 84.5 | L95: 0.00104 | M95: 0.0052
B96: Name 87 | C96: 0.05870697591 | D96: 0 | E96: 10 | F96: 3.989422804 | K96: 85.5 | L96: 0.00104 | M96: 0.00496
B97: Name 88 | C97: 0.05870158424 | D97: 0 | E97: 10 | F97: 3.989422804 | K97: 86.5 | L97: 0.00104 | M97: 0.00464
B98: Name 89 | C98: 0.02732330061 | D98: 0 | E98: 10 | F98: 3.989422804 | K98: 87.5 | L98: 0.00104 | M98: 0.00448
B99: Name 90 | C99: 0.05467977881 | D99: 0 | E99: 10 | F99: 3.989422804 | K99: 88.5 | L99: 0.00072 | M99: 0.00424
B100: Name 91 | C100: 0.02944199885 | D100: 0 | E100: 10 | F100: 3.989422804 | K100: 89.5 | L100: 0.00072 | M100: 0.00404
B101: Name 92 | C101: 0.01650463254 | D101: 0 | E101: 10 | F101: 3.989422804 | K101: 90.5 | L101: 0.00072 | M101: 0.00372
B102: Name 93 | C102: 0.04419067763 | D102: 0 | E102: 10 | F102: 3.989422804 | K102: 91.5 | L102: 0.00072 | M102: 0.00348
B103: Name 94 | C103: 0.03970457686 | D103: 0 | E103: 10 | F103: 3.989422804 | K103: 92.5 | L103: 0.00052 | M103: 0.0032
B104: Name 95 | C104: 0.04475259045 | D104: 0 | E104: 10 | F104: 3.989422804 | K104: 93.5 | L104: 0.00052 | M104: 0.00292
B105: Name 96 | C105: 0.05160074538 | D105: 0 | E105: 10 | F105: 3.989422804 | K105: 94.5 | L105: 0.00052 | M105: 0.00256
B106: Name 97 | C106: 0.03025507382 | D106: 0 | E106: 10 | F106: 3.989422804 | K106: 95.5 | L106: 0.00052 | M106: 0.0024
B107: Name 98 | C107: 0.0327231956 | D107: 0 | E107: 10 | F107: 3.989422804 | K107: 96.5 | L107: 0.00036 | M107: 0.00228
B108: Name 99 | C108: 0.05282540718 | D108: 0 | E108: 10 | F108: 3.989422804 | K108: 97.5 | L108: 0.00036 | M108: 0.00224
B109: Name 100 | C109: 0.04484932434 | D109: 0 | E109: 10 | F109: 3.989422804 | K109: 98.5 | L109: 0.00036 | M109: 0.002
B110: Name 101 | C110: 0.01707097284 | D110: 0 | E110: 10 | F110: 3.989422804 | K110: 99.5 | L110: 0.00036 | M110: 0.00192
B111: Name 102 | C111: 0.0318235697 | D111: 0 | E111: 10 | F111: 3.989422804 | K111: 100.5 | L111: 0.00024 | M111: 0.00144
B112: Name 103 | C112: 0.05019242836 | D112: 0 | E112: 10 | F112: 3.989422804 | K112: 101.5 | L112: 0.00024 | M112: 0.00144
B113: Name 104 | C113: 0.02087425394 | D113: 0 | E113: 10 | F113: 3.989422804 | K113: 102.5 | L113: 0.00024 | M113: 0.0014
B114: Name 105 | C114: 0.02405866 | D114: 0 | E114: 10 | F114: 3.989422804 | K114: 103.5 | L114: 0.00024 | M114: 0.0014
B115: Name 106 | C115: 0.05616397408 | D115: 0 | E115: 10 | F115: 3.989422804 | K115: 104.5 | L115: 0.0002 | M115: 0.00128
B116: Name 107 | C116: 0.05703923127 | D116: 0 | E116: 10 | F116: 3.989422804 | K116: 105.5 | L116: 0.0002 | M116: 0.00124
B117: Name 108 | C117: 0.03679942315 | D117: 0 | E117: 10 | F117: 3.989422804 | K117: 106.5 | L117: 0.0002 | M117: 0.001
B118: Name 109 | C118: 0.02886106293 | D118: 0 | E118: 10 | F118: 3.989422804 | K118: 107.5 | L118: 0.0002 | M118: 0.00096
B119: Name 110 | C119: 0.04828759573 | D119: 0 | E119: 10 | F119: 3.989422804 | K119: 108.5 | L119: 0.00016 | M119: 0.00088
B120: Name 111 | C120: 0.05252294756 | D120: 0 | E120: 10 | F120: 3.989422804 | K120: 109.5 | L120: 0.00016 | M120: 0.00084
B121: Name 112 | C121: 0.01779239932 | D121: 0 | E121: 10 | F121: 3.989422804 | K121: 110.5 | L121: 0.00016 | M121: 0.0008
B122: Name 113 | C122: 0.03585225718 | D122: 0 | E122: 10 | F122: 3.989422804 | K122: 111.5 | L122: 0.00016 | M122: 0.00072
B123: Name 114 | C123: 0.05813885991 | D123: 0 | E123: 10 | F123: 3.989422804 | K123: 112.5 | L123: 8e-05 | M123: 0.00068
B124: Name 115 | C124: 0.05875114342 | D124: 0 | E124: 10 | F124: 3.989422804 | K124: 113.5 | L124: 8e-05 | M124: 0.00068
B125: Name 116 | C125: 0.02070846527 | D125: 0 | E125: 10 | F125: 3.989422804 | K125: 114.5 | L125: 8e-05 | M125: 0.0006
B126: Name 117 | C126: 0.02996705775 | D126: 0 | E126: 10 | F126: 3.989422804 | K126: 115.5 | L126: 8e-05 | M126: 0.0006
B127: Name 118 | C127: 0.02187973842 | D127: 0 | E127: 10 | F127: 3.989422804 | K127: 116.5 | L127: 4e-05 | M127: 0.0006
B128: Name 119 | C128: 0.05909008556 | D128: 0 | E128: 10 | F128: 3.989422804 | K128: 117.5 | L128: 4e-05 | M128: 0.0006
B129: Name 120 | C129: 0.02852433074 | D129: 0 | E129: 10 | F129: 3.989422804 | K129: 118.5 | L129: 4e-05 | M129: 0.00056
B130: Name 121 | C130: 0.05526788717 | D130: 0 | E130: 10 | F130: 3.989422804 | K130: 119.5 | L130: 4e-05 | M130: 0.00056
B131: Name 122 | C131: 0.03686311466 | D131: 0 | E131: 10 | F131: 3.989422804 | K131: 120.5 | L131: 4e-05 | M131: 0.00056
B132: Name 123 | C132: 0.01736573452 | D132: 0 | E132: 10 | F132: 3.989422804 | K132: 121.5 | L132: 4e-05 | M132: 0.00056
B133: Name 124 | C133: 0.05439730868 | D133: 0 | E133: 10 | F133: 3.989422804 | K133: 122.5 | L133: 4e-05 | M133: 0.00056
B134: Name 125 | C134: 0.04618333712 | D134: 0 | E134: 10 | F134: 3.989422804 | K134: 123.5 | L134: 4e-05 | M134: 0.00056
B135: Name 126 | C135: 0.01898541296 | D135: 0 | E135: 10 | F135: 3.989422804 | K135: 124.5 | L135: 0 | M135: 0.00052
B136: Name 127 | C136: 0.05541461421 | D136: 0 | E136: 10 | F136: 3.989422804 | K136: 125.5 | L136: 0 | M136: 0.00048
B137: Name 128 | C137: 0.01350269222 | D137: 0 | E137: 10 | F137: 3.989422804 | K137: 126.5 | L137: 0 | M137: 0.00044
B138: Name 129 | C138: 0.04280673899 | D138: 0 | E138: 10 | F138: 3.989422804 | K138: 127.5 | L138: 0 | M138: 0.0004
B139: Name 130 | C139: 0.04043427936 | D139: 0 | E139: 10 | F139: =(D139*NORMSDIST(D139/E139)+E139*NORMDIST(D139/E139,0,1,FALSE())) -> 3.989422804 | K139: 128.5 | L139: 0 | M139: 0.00036
B140: Name 131 | C140: 0.01171060032 | D140: 0 | E140: 10 | F140: 3.989422804 | K140: 129.5 | L140: 0 | M140: 0.00036
B141: Name 132 | C141: 0.0539105649 | D141: 0 | E141: 10 | F141: 3.989422804 | K141: 130.5 | L141: 0 | M141: 0.00036
B142: Name 133 | C142: 0.02433321468 | D142: 0 | E142: 10 | F142: 3.989422804 | K142: 131.5 | L142: 0 | M142: 0.00032
B143: Name 134 | C143: 0.03895967009 | D143: 0 | E143: 10 | F143: 3.989422804 | K143: 132.5 | L143: 0 | M143: 0.00028
B144: Name 135 | C144: 0.03548633908 | D144: 0 | E144: 10 | F144: 3.989422804 | K144: 133.5 | L144: 0 | M144: 0.00024
B145: Name 136 | C145: 0.05623461651 | D145: 0 | E145: 10 | F145: 3.989422804 | K145: 134.5 | L145: 0 | M145: 0.0002
B146: Name 137 | C146: 0.03498930948 | D146: 0 | E146: 10 | F146: 3.989422804 | K146: 135.5 | L146: 0 | M146: 0.0002
B147: Name 138 | C147: 0.02296197514 | D147: 0 | E147: 10 | F147: 3.989422804 | K147: 136.5 | L147: 0 | M147: 0.00016
B148: Name 139 | C148: 0.04089495114 | D148: 0 | E148: 10 | F148: 3.989422804 | K148: 137.5 | L148: 0 | M148: 0.00016
B149: Name 140 | C149: 0.04607524733 | D149: 0 | E149: 10 | F149: 3.989422804 | K149: 138.5 | L149: 0 | M149: 0.00016
B150: Name 141 | C150: 0.04401267268 | D150: 0 | E150: 10 | F150: 3.989422804 | K150: 139.5 | L150: 0 | M150: 0.00016
B151: Name 142 | C151: 0.05321235147 | D151: 0 | E151: 10 | F151: 3.989422804 | K151: 140.5 | L151: 0 | M151: 0.00016
B152: Name 143 | C152: 0.02799439514 | D152: 0 | E152: 10 | F152: 3.989422804 | K152: 141.5 | L152: 0 | M152: 0.00012
B153: Name 144 | C153: 0.01796230984 | D153: 0 | E153: 10 | F153: 3.989422804 | K153: 142.5 | L153: 0 | M153: 0.00012
B154: Name 145 | C154: 0.04385553084 | D154: 0 | E154: 10 | F154: 3.989422804 | K154: 143.5 | L154: 0 | M154: 0.00012
B155: Name 146 | C155: 0.03909296746 | D155: 0 | E155: 10 | F155: 3.989422804 | K155: 144.5 | L155: 0 | M155: 8e-05
B156: Name 147 | C156: 0.04995159314 | D156: 0 | E156: 10 | F156: 3.989422804 | K156: 145.5 | L156: 0 | M156: 8e-05
B157: Name 148 | C157: 0.01440321591 | D157: 0 | E157: 10 | F157: 3.989422804 | K157: 146.5 | L157: 0 | M157: 8e-05
B158: Name 149 | C158: 0.04175476894 | D158: 0 | E158: 10 | F158: 3.989422804 | K158: 147.5 | L158: 0 | M158: 4e-05
B159: Name 150 | C159: 0.02744820157 | D159: 0 | E159: 10 | F159: 3.989422804 | K159: 148.5 | L159: 0 | M159: 4e-05
B160: Name 151 | C160: 0.03201207148 | D160: 0 | E160: 10 | F160: 3.989422804 | K160: 149.5 | L160: 0 | M160: 4e-05
B161: Name 152 | C161: 0.04468865538 | D161: 0 | E161: 10 | F161: 3.989422804 | K161: 150.5 | L161: 0 | M161: 4e-05
B162: Name 153 | C162: 0.01000501145 | D162: 0 | E162: 10 | F162: 3.989422804 | K162: 151.5 | L162: 0 | M162: 4e-05
B163: Name 154 | C163: 0.01402053934 | D163: 0 | E163: 10 | F163: 3.989422804 | K163: 152.5 | L163: 0 | M163: 4e-05
B164: Name 155 | C164: 0.01226142594 | D164: 0 | E164: 10 | F164: 3.989422804 | K164: 153.5 | L164: 0 | M164: 4e-05
B165: Name 156 | C165: 0.05888550098 | D165: 0 | E165: 10 | F165: 3.989422804 | K165: 154.5 | L165: 0 | M165: 4e-05
B166: Name 157 | C166: 0.03475209177 | D166: 0 | E166: 10 | F166: 3.989422804 | K166: 155.5 | L166: 0 | M166: 4e-05
B167: Name 158 | C167: 0.01820842479 | D167: 0 | E167: 10 | F167: 3.989422804 | K167: 156.5 | L167: 0 | M167: 4e-05
B168: Name 159 | C168: 0.026698846 | D168: 0 | E168: 10 | F168: 3.989422804 | K168: 157.5 | L168: 0 | M168: 4e-05
B169: Name 160 | C169: 0.01943866334 | D169: 0 | E169: 10 | F169: 3.989422804 | K169: 158.5 | L169: 0 | M169: 4e-05
B170: Name 161 | C170: 0.04619690301 | D170: 0 | E170: 10 | F170: 3.989422804 | K170: 159.5 | L170: 0 | M170: 0
B171: Name 162 | C171: 0.04005314451 | D171: 0 | E171: 10 | F171: 3.989422804 | K171: 160.5 | L171: 0 | M171: 0
B172: Name 163 | C172: 0.02379774235 | D172: 0 | E172: 10 | F172: 3.989422804 | K172: 161.5 | L172: 0 | M172: 0
B173: Name 164 | C173: 0.03574559854 | D173: 0 | E173: 10 | F173: 3.989422804 | K173: 162.5 | L173: 0 | M173: 0
B174: Name 165 | C174: 0.02988035778 | D174: 0 | E174: 10 | F174: 3.989422804 | K174: 163.5 | L174: 0 | M174: 0
B175: Name 166 | C175: 0.02576327241 | D175: 0 | E175: 10 | F175: 3.989422804 | K175: 164.5 | L175: 0 | M175: 0
B176: Name 167 | C176: 0.01321574321 | D176: 0 | E176: 10 | F176: 3.989422804 | K176: 165.5 | L176: 0 | M176: 0
B177: Name 168 | C177: 0.02145172471 | D177: 0 | E177: 10 | F177: 3.989422804 | K177: 166.5 | L177: 0 | M177: 0
B178: Name 169 | C178: 0.0579455978 | D178: 0 | E178: 10 | F178: 3.989422804 | K178: 167.5 | L178: 0 | M178: 0
B179: Name 170 | C179: 0.04011519468 | D179: 0 | E179: 10 | F179: 3.989422804 | K179: 168.5 | L179: 0 | M179: 0
B180: Name 171 | C180: 0.01760314268 | D180: 0 | E180: 10 | F180: 3.989422804 | K180: 169.5 | L180: 0 | M180: 0
B181: Name 172 | C181: 0.05027725678 | D181: 0 | E181: 10 | F181: 3.989422804 | K181: 170.5 | L181: 0 | M181: 0
B182: Name 173 | C182: 0.03565795016 | D182: 0 | E182: 10 | F182: 3.989422804 | K182: 171.5 | L182: 0 | M182: 0
B183: Name 174 | C183: 0.03493703167 | D183: 0 | E183: 10 | F183: 3.989422804 | K183: 172.5 | L183: 0 | M183: 0
B184: Name 175 | C184: 0.02539658681 | D184: 0 | E184: 10 | F184: 3.989422804 | K184: 173.5 | L184: 0 | M184: 0
B185: Name 176 | C185: 0.04773771001 | D185: 0 | E185: 10 | F185: 3.989422804 | K185: 174.5 | L185: 0 | M185: 0
B186: Name 177 | C186: 0.04684966952 | D186: 0 | E186: 10 | F186: 3.989422804 | K186: 175.5 | L186: 0 | M186: 0
B187: Name 178 | C187: 0.02386426554 | D187: 0 | E187: 10 | F187: 3.989422804 | K187: 176.5 | L187: 0 | M187: 0
B188: Name 179 | C188: 0.03737740863 | D188: 0 | E188: 10 | F188: 3.989422804 | K188: 177.5 | L188: 0 | M188: 0
B189: Name 180 | C189: 0.05491809584 | D189: 0 | E189: 10 | F189: 3.989422804 | K189: 178.5 | L189: 0 | M189: 0
B190: Name 181 | C190: 0.0580711035 | D190: 0 | E190: 10 | F190: 3.989422804 | K190: 179.5 | L190: 0 | M190: 0
B191: Name 182 | C191: 0.01891076015 | D191: 0 | E191: 10 | F191: 3.989422804 | K191: 180.5 | L191: 0 | M191: 0
B192: Name 183 | C192: 0.02822682069 | D192: 0 | E192: 10 | F192: 3.989422804 | K192: 181.5 | L192: 0 | M192: 0
B193: Name 184 | C193: 0.01172641422 | D193: 0 | E193: 10 | F193: 3.989422804 | K193: 182.5 | L193: 0 | M193: 0
B194: Name 185 | C194: 0.03519236052 | D194: 0 | E194: 10 | F194: 3.989422804 | K194: 183.5 | L194: 0 | M194: 0
B195: Name 186 | C195: 0.01510623671 | D195: 0 | E195: 10 | F195: 3.989422804 | K195: 184.5 | L195: 0 | M195: 0
B196: Name 187 | C196: 0.01768522631 | D196: 0 | E196: 10 | F196: 3.989422804 | K196: 185.5 | L196: 0 | M196: 0
B197: Name 188 | C197: 0.0277238936 | D197: 0 | E197: 10 | F197: 3.989422804 | K197: 186.5 | L197: 0 | M197: 0
B198: Name 189 | C198: 0.04725177079 | D198: 0 | E198: 10 | F198: 3.989422804 | K198: 187.5 | L198: 0 | M198: 0
B199: Name 190 | C199: 0.03293109759 | D199: 0 | E199: 10 | F199: 3.989422804 | K199: 188.5 | L199: 0 | M199: 0
B200: Name 191 | C200: 0.01535793058 | D200: 0 | E200: 10 | F200: 3.989422804 | K200: 189.5 | L200: 0 | M200: 0
B201: Name 192 | C201: 0.01941647306 | D201: 0 | E201: 10 | F201: 3.989422804 | K201: 190.5 | L201: 0 | M201: 0
B202: Name 193 | C202: 0.03444345927 | D202: 0 | E202: 10 | F202: 3.989422804 | K202: 191.5 | L202: 0 | M202: 0
B203: Name 194 | C203: 0.05580529826 | D203: 0 | E203: 10 | F203: =(D203*NORMSDIST(D203/E203)+E203*NORMDIST(D203/E203,0,1,FALSE())) -> 3.989422804 | K203: 192.5 | L203: 0 | M203: 0
B204: Name 195 | C204: 0.02997979261 | D204: 0 | E204: 10 | F204: 3.989422804 | K204: 193.5 | L204: 0 | M204: 0
B205: Name 196 | C205: 0.04772892476 | D205: 0 | E205: 10 | F205: 3.989422804 | K205: 194.5 | L205: 0 | M205: 0
B206: Name 197 | C206: 0.02247008761 | D206: 0 | E206: 10 | F206: 3.989422804 | K206: 195.5 | L206: 0 | M206: 0
B207: Name 198 | C207: 0.02271390532 | D207: 0 | E207: 10 | F207: 3.989422804 | K207: 196.5 | L207: 0 | M207: 0
... 302 more rows

Sheet 13.3
C8: EE | D8: Effective EE | E8: EPE | F8: Effective EPE
B9: 0 | C9: 0.11 | D9: =C9 -> 0.11 | E9: =AVERAGE(C9:C33) -> 0.30544 | F9: =AVERAGE(D9:D33) -> 0.7584
B10: =B9+1/24 -> 0.04166666667 | C10: 0.21 | D10: =IF(B10<=1,MAX(C10,D9),C10) -> 0.21 | E10: =E9 -> 0.30544 | F10: =F9 -> 0.7584
B11: =B10+1/24 -> 0.08333333333 | C11: 0.29 | D11: =IF(B11<=1,MAX(C11,D10),C11) -> 0.29 | E11: =E10 -> 0.30544 | F11: 0.7584
B12: 0.125 | C12: 0.4 | D12: 0.4 | E12: 0.30544 | F12: 0.7584
B13: 0.1666666667 | C13: 0.62 | D13: 0.62 | E13: 0.30544 | F13: 0.7584
B14: 0.2083333333 | C14: 0.45 | D14: 0.62 | E14: 0.30544 | F14: 0.7584
B15: 0.25 | C15: 0.35 | D15: 0.62 | E15: 0.30544 | F15: 0.7584
B16: 0.2916666667 | C16: 0.38 | D16: 0.62 | E16: 0.30544 | F16: 0.7584
B17: 0.3333333333 | C17: 0.55 | D17: 0.62 | E17: 0.30544 | F17: 0.7584
B18: 0.375 | C18: 0.75 | D18: 0.75 | E18: 0.30544 | F18: 0.7584
B19: 0.4166666667 | C19: 0.94 | D19: 0.94 | E19: 0.30544 | F19: 0.7584
B20: 0.4583333333 | C20: 0.52 | D20: 0.94 | E20: 0.30544 | F20: 0.7584
B21: 0.5 | C21: 0.4 | D21: 0.94 | E21: 0.30544 | F21: 0.7584
B22: 0.5416666667 | C22: 0.35 | D22: 0.94 | E22: 0.30544 | F22: 0.7584
B23: 0.5833333333 | C23: 0.3 | D23: 0.94 | E23: 0.30544 | F23: 0.7584
B24: 0.625 | C24: 0.25 | D24: 0.94 | E24: 0.30544 | F24: 0.7584
B25: 0.6666666667 | C25: 0.22 | D25: 0.94 | E25: 0.30544 | F25: 0.7584
B26: 0.7083333333 | C26: 0.2 | D26: 0.94 | E26: 0.30544 | F26: 0.7584
B27: 0.75 | C27: 0.156 | D27: 0.94 | E27: =E26 -> 0.30544 | F27: 0.7584
B28: 0.7916666667 | C28: 0.1 | D28: 0.94 | E28: 0.30544 | F28: 0.7584
B29: 0.8333333333 | C29: 0.05 | D29: 0.94 | E29: 0.30544 | F29: 0.7584
B30: 0.875 | C30: 0.03 | D30: 0.94 | E30: 0.30544 | F30: 0.7584
B31: 0.9166666667 | C31: 0.01 | D31: 0.94 | E31: 0.30544 | F31: 0.7584
B32: 0.9583333333 | C32: 0 | D32: 0.94 | E32: 0.30544 | F32: 0.7584
B33: 1 | C33: 0 | D33: 0.94 | E33: 0.30544 | F33: 0.7584

Sheet 13.4
B8: Trade details | E8: CEM | H8: SA-CVA Sensitivities and Risk Weights
B9: Start Date | C9: 0 | E9: Add On | F9: =IF(Maturity>1,0.5%,0)+IF(Maturity>5,1%,0) -> 0.015 | J9: Sensitivity | K9: Weight
B10: Maturity | C10: 10 | E10: EAD | F10: =MAX(MTM-Collateral,0)+AddOn_CEM -> 0.015 | H10: Credit Delta | I10: 6M | J10: =R47 -> -0.001938577116 | K10: =RW_BACVA -> 0.05
B11: Swap Rate | C11: 0.0177 | I11: 1Y | J11: =R48 -> 0.004194425511 | K11: =RW_BACVA -> 0.05 | O11: CCR Capital | P11: CVA Capital
B12: Pay/Rec | C12: REC | E12: SA-CCR | I12: 3Y | J12: =R49 -> -0.003521454259 | K12: =RW_BACVA -> 0.05 | N12: CEM / Std | O12: =L27 -> 0.0008134119496 | P12: =L32 -> 0.002200280551
B13: Par Swap Rate | C13: =R54 -> 0.01771193345 | E13: Alpha | F13: 1.4 | I13: 5Y | J13: =R50 -> 0.01787538083 | K13: =RW_BACVA -> 0.05 | N13: SA-CCR / Std | O13: =L28 -> 0.0008961474569 | P13: =L33 -> 0.002424080223
B14: Swap Rate Volatility | C14: 0.4 | E14: Supervisory Duration | F14: =(EXP(-5%*StartDate)-EXP(-5%*Maturity))/5% -> 7.869386806 | I14: 10Y | J14: =R51 -> 0.008063814581 | K14: =RW_BACVA -> 0.05 | N14: SA-CCR / BA-CVA | O14: =O13 -> 0.0008961474569 | P14: =L34 -> 0.004644543652
B15: MTM | C15: =R55 -> -0.0001112037535 | E15: MF | F15: =IF(Collateralised,1.5*SQRT(10/250),SQRT(MIN(Maturity,1)/1)) -> 0.3 | H15: IR Delta | I15: 0-1 years | J15: =SUMIF(E28:E33,"<="&1,R40:R45) -> -0.0001311099343 | K15: 0.017 | N15: SA-CCR / SA-CVA | O15: =O14 -> 0.0008961474569 | P15: =L35 -> 0.002091948442
B16: Collateralised? | C16: TRUE | E16: AddOn | F16: =0.5%*S_Dur*MF -> 0.01180408021 | I16: 1-5 year | J16: =SUMIF(E28:E33,"<="&5,R40:R45)-J15 -> -0.006546524215 | K16: 0.0127
B17: Collateral Held | C17: =IF(Collateralised,MTM,0) -> -0.0001112037535 | E17: RC | F17: =MAX(MTM-Collateral,0) -> 0 | I17: > 5 years | J17: =SUM(R40:R45)-J16-J15 -> 0.01648887419 | K17: 0.0106
E18: Multiplier | F18: =MIN(1,5%+95%*EXP((MTM-Collateral)/(2*(1-5%)*AddOn))) -> 1 | H18: IR Vega | J18: =R46 -> 0.0002809030758 | K18: =55%*SQRT(6) -> 1.347219359
B19: Regulatory Details | E19: PFE | F19: =Multiplier*AddOn -> 0.01180408021
B20: Rating | C20: A | E20: EAD (SA-CCR) | F20: =Alpha*(RCost+PFE) -> 0.01652571229 | K20: SA-CVA Components
B21: Sector | C21: Financials including government-backed financials | K21: Multiplier | L21: 1.25
B22: FRTB Option | C22: Option1 | E22: BA-CVA | H22: CVA Inputs (for SA-CVA) | K22: Credit spread | L22: =SACVAMultiplier*SQRT(MMULT(TRANSPOSE(CreditDeltas),MMULT(CreditDeltaCorrMat,CreditDeltas)))*RW_BACVA -> 0.00145521437
B23: Std CVA Weight | C23: =VLOOKUP(C20,E41:F47,2,FALSE) -> 0.008 | E23: Risk Weight | F23: =VLOOKUP(Sector,SectorWeights,2+IF(FRTBOption="Option1",2,0)+IF(FRTBOption="Option2",4,0)+IF(MATCH(Rating,Ratings,0)>4,1,0),FALSE) -> 0.05 | H23: Tenor | I23: Spread | K23: IR Delta | L23: =SACVAMultiplier*SQRT(MMULT(TRANSPOSE((IRDeltas)*(IRDeltaWeights)),MMULT(IRDeltaCorrMat,(IRDeltas)*(IRDeltaWeights)))) -> 0.0001636864946
B24: Std Risk Weight | C24: =VLOOKUP(C20,B41:C48,2,FALSE) -> 0.5 | E24: Exposure Multiplier | F24: 1 | H24: 0.5 | I24: 0.0012 | K24: IR Vega | L24: =SACVAMultiplier*IRVega*IRVegaWeight -> 0.0004730475769
B25: Correlation Multiplier | C25: NO | H25: 1 | I25: 0.0018
B26: PD (IRB) | C26: 0.001 | E26: Interest Rates | H26: 3 | I26: 0.005 | K26: CCR Capital Charge
B27: Recovery (IRB) | C27: 0.4 | E27: Tenor | F27: Spot Rate | H27: 5 | I27: 0.0092 | K27: CEM | L27: =(1-Recovery)*1.06*PD99.9*EAD_CEM*MA -> 0.0008134119496
E28: 0 | F28: 0.008 | H28: 10 | I28: 0.0135 | K28: SA-CCR | L28: =(1-Recovery)*1.06*PD99.9*EAD_SACCR*MA -> 0.0008961474569
B29: IRB Calculations | E29: 1 | F29: 0.0092 | H29: LGD calib | I29: 0.6
B30: Rho | C30: =(0.12*(1-EXP(-50*PDef))/(1-EXP(-50))+0.24*(1-(1-EXP(-50*PDef))/(1-EXP(-50))))*IF(CorrelationMultiplier="YES",1.25,1) -> 0.2341475309 | E30: 3 | F30: 0.0118 | H30: LGD CVA | I30: 0.6 | K30: CVA Capital Charge
B31: PD(99.9%) | C31: =NORMSDIST((NORMSINV(PDef)+SQRT(Rho)*NORMSINV(99.9%))/SQRT(1-Rho))-PDef -> 0.03319115236 | E31: 5 | F31: 0.014 | K31: Eff maturity | L31: =Maturity*(1-EXP(-5%*Maturity))/(Maturity*5%) -> 7.869386806
B32: Reg Maturity | C32: =MIN(Maturity,5) -> 5 | E32: 7 | F32: 0.016 | H32: CVA | K32: CEM | L32: =EAD_CEM*Weight*2.33*EffectiveMaturity -> 0.002200280551
B33: b(PD) | C33: =(0.11852-0.05478*LN(PDef))^2 -> 0.2469362785 | E33: 10 | F33: 0.018 | H33: CVA | I33: =R52 -> 0.0002810551946 | K33: Std | L33: =EAD_SACCR*Weight*2.33*EffectiveMaturity -> 0.002424080223
B34: MA | C34: =(1+(RegMaturity-2.5)*bFac)/(1-1.5*bFac) -> 2.568856488 | H34: CVA (bp pa) | I34: =R53*10000 -> 0.3777064697 | K34: BA-CVA | L34: =BACVAExpMult*RW_BACVA/Alpha*EAD_SACCR*EffectiveMaturity -> 0.004644543652
K35: SA-CVA | L35: =SUM(BucketedCapitalCharges) -> 0.002091948442
B40: Standardised Approach Risk Weights | E40: CVA Capital Charge Risk Weights | H40: BA-CVA and SA-CVA Risk Weights | Q40: IRDelta | R40: =CalcCVAIRSGreeks(IRCurve,CreditCurve,LGDCalib,LGDCVA,SwapRate,StartDate,Maturity,PayRec,IRVol,Collateralised) -> -2.201607474e-05
B41: AAA | C41: 0.2 | E41: AAA | F41: 0.007 | I41: Original | K41: Option 1 | M41: Option 2 | R41: -0.0001090938596
B42: AA | C42: 0.2 | E42: AA | F42: 0.007 | I42: IG | J42: NIG | K42: IG | L42: NIG | M42: IG | N42: NIG | R42: -0.00257758988
B43: A | C43: 0.5 | E43: A | F43: 0.008 | H43: Sovereigns including central banks, multilateral development banks | I43: 0.088 | J43: 0.204 | K43: 0.005 | L43: 0.03 | M43: 0.009 | N43: 0.037 | R43: -0.003968934335
B44: BBB | C44: 1 | E44: BBB | F44: 0.01 | H44: Local government, government-backed non-financials, education, public administration, | I44: 0.088 | J44: 0.204 | K44: 0.01 | L44: 0.04 | M44: 0.012 | N44: 0.04 | R44: -0.009271993459
B45: BB | C45: 1 | E45: BB | F45: 0.02 | H45: Financials including government-backed financials | I45: 0.102 | J45: 0.173 | K45: 0.05 | L45: 0.12 | M45: 0.061 | N45: 0.12 | R45: 0.02576086764
B46: B | C46: 1.5 | E46: B | F46: 0.03 | H46: Basic materials, energy, industrials, agriculture, manufacturing, mining and quarrying | I46: 0.071 | J46: 0.13 | K46: 0.03 | L46: 0.07 | M46: 0.037 | N46: 0.07 | Q46: IR Vega | R46: 0.0002809030758
B47: CCC | C47: 1.5 | E47: CCC | F47: 0.1 | H47: Consumer goods and services, transportation and storage, administrative and support service activities | I47: 0.061 | J47: 0.144 | K47: 0.03 | L47: 0.085 | M47: 0.037 | N47: 0.085 | Q47: Credit Delta | R47: -0.001938577116
B48: unrated | C48: 1 | H48: Technology, telecommunications | I48: 0.051 | J48: 0.13 | K48: 0.02 | L48: 0.055 | M48: 0.024 | N48: 0.055 | R48: 0.004194425511
H49: Health care, utilities, professional and technical activities | I49: 0.041 | J49: 0.087 | K49: 0.015 | L49: 0.05 | M49: 0.018 | N49: 0.05 | R49: -0.003521454259
B50: Interest Rate Delta Correlation Matrix | H50: Indices spanning multiple buckets | I50: 0.041 | J50: 0.087 | K50: n/a | L50: n/a | M50: n/a | N50: n/a | R50: 0.01787538083
C51: =TRANSPOSE(I15:I17) -> 0-1 years | D51: 1-5 year | E51: > 5 years | R51: 0.008063814581
B52: =TRANSPOSE(C51:E51) -> 0-1 years | C52: 1 | D52: 0.7 | E52: 0.3 | Q52: CVA | R52: 0.0002810551946
B53: 1-5 year | C53: =D52 -> 0.7 | D53: 1 | E53: 0.7 | Q53: CVA (spread) | R53: 3.777064697e-05
B54: > 5 years | C54: =E52 -> 0.3 | D54: =E53 -> 0.7 | E54: 1 | Q54: Par swap Rate | R54: 0.01771193345
Q55: MTM | R55: -0.0001112037535
B56: Credit Spread Delta Correlation Matrix | I56: Correlation Between Risk Factors
C57: 6M | D57: 1Y | E57: 3Y | F57: 5Y | G57: 10Y | J57: =TRANSPOSE(I58:I60) -> Credit delta | K57: IR Delta | L57: IR Vega
B58: =TRANSPOSE(C57:G57) -> 6M | C58: 1 | D58: 0.65 | E58: =D58 -> 0.65 | F58: =E58 -> 0.65 | G58: =F58 -> 0.65 | I58: Credit delta | J58: 1 | K58: 1 | L58: 1
B59: 1Y | C59: =D58 -> 0.65 | D59: 1 | E59: =E58 -> 0.65 | F59: =F58 -> 0.65 | G59: =G58 -> 0.65 | I59: IR Delta | J59: =K58 -> 1 | K59: 1 | L59: 1
B60: 3Y | C60: =E58 -> 0.65 | D60: =E59 -> 0.65 | E60: 1 | F60: =F59 -> 0.65 | G60: =G59 -> 0.65 | I60: IR Vega | J60: =L58 -> 1 | K60: =L59 -> 1 | L60: 1
B61: 5Y | C61: =F58 -> 0.65 | D61: =F59 -> 0.65 | E61: =F60 -> 0.65 | F61: 1 | G61: =G60 -> 0.65
B62: 10Y | C62: =G58 -> 0.65 | D62: =G59 -> 0.65 | E62: =G60 -> 0.65 | F62: =G61 -> 0.65 | G62: 1

Sheet 13.5
B9: Default Probability 1 | C9: 0.01
B10: Default Probability 2 | C10: 0.02
B11: Correlation | C11: 0.5
B12: Joint default probability | C12: =BivN(NORMSINV(C9),NORMSINV(C10),C11) -> 0.002059747477
